[Event "Early-Titled-Tuesday-Blitz-January-23-2024"]
[Site "Chess.com"]
[Date "2024.01.23"]
[Round "6"]
[White "AljoschaFeuerstack"]
[Black "MikaelyanArman"]
[Result "1/2-1/2"]
[WhiteElo "2628"]
[BlackElo "2829"]
[TimeControl "180+1"]
[EndTime "9:07:06 PST"]
[Termination "Game drawn - insufficient material"]

1. e4 {[%clk 0:02:59.7]} 1... c5 {[%clk 0:02:54.6]} 2. Nf3 {[%clk 0:02:58.6]}
2... Nc6 {[%clk 0:02:50.9]} 3. g3 {[%clk 0:02:57.6]} 3... g6 {[%clk 0:02:49.5]}
4. Bg2 {[%clk 0:02:57.8]} 4... Bg7 {[%clk 0:02:50.1]} 5. O-O {[%clk 0:02:58]}
5... Nf6 {[%clk 0:02:47.4]} 6. Re1 {[%clk 0:02:55.2]} 6... O-O {[%clk
0:02:47.5]} 7. c3 {[%clk 0:02:52]} 7... e5 {[%clk 0:02:36.3]} 8. d4 {[%clk
0:02:19.6]} 8... cxd4 {[%clk 0:02:37.2]} 9. cxd4 {[%clk 0:02:19.9]} 9... exd4
{[%clk 0:02:38]} 10. Nxd4 {[%clk 0:02:11.1]} 10... Qb6 {[%clk 0:02:36.5]} 11.
Nb3 {[%clk 0:01:59.5]} 11... d5 {[%clk 0:02:23.7]} 12. Be3 {[%clk 0:01:56.8]}
12... d4 {[%clk 0:02:16.6]} 13. Nxd4 {[%clk 0:01:48.4]} 13... Qxb2 {[%clk
0:02:16.1]} 14. Nb3 {[%clk 0:00:39]} 14... Ng4 {[%clk 0:02:13.7]} 15. N1d2
{[%clk 0:00:32.4]} 15... Nxe3 {[%clk 0:02:03]} 16. Rxe3 {[%clk 0:00:33.3]} 16...
Be6 {[%clk 0:02:03.3]} 17. Qc1 {[%clk 0:00:23]} 17... Rfd8 {[%clk 0:01:50.1]}
18. Qxb2 {[%clk 0:00:22.4]} 18... Bxb2 {[%clk 0:01:51]} 19. Rb1 {[%clk 0:00:23]}
19... Bg7 {[%clk 0:01:43.6]} 20. Nf3 {[%clk 0:00:23.2]} 20... b6 {[%clk
0:01:34.2]} 21. Ng5 {[%clk 0:00:23.5]} 21... Bc4 {[%clk 0:01:30.2]} 22. e5
{[%clk 0:00:23.8]} 22... Rac8 {[%clk 0:01:30.6]} 23. e6 {[%clk 0:00:23.7]} 23...
fxe6 {[%clk 0:00:52.1]} 24. Nxe6 {[%clk 0:00:24.6]} 24... Rd3 {[%clk 0:00:52.5]}
25. Rxd3 {[%clk 0:00:20]} 25... Bxd3 {[%clk 0:00:53.4]} 26. Rc1 {[%clk 0:00:19]}
26... Ne7 {[%clk 0:00:47.3]} 27. Nxg7 {[%clk 0:00:19.2]} 27... Kxg7 {[%clk
0:00:45.7]} 28. Rxc8 {[%clk 0:00:19.2]} 28... Nxc8 {[%clk 0:00:46.6]} 29. Nd4
{[%clk 0:00:17.6]} 29... Nd6 {[%clk 0:00:42.8]} 30. Nc6 {[%clk 0:00:17]} 30...
a5 {[%clk 0:00:39.1]} 31. Ne5 {[%clk 0:00:17.5]} 31... Bb1 {[%clk 0:00:31.1]}
32. a3 {[%clk 0:00:17.5]} 32... Bf5 {[%clk 0:00:29.3]} 33. Bf1 {[%clk
0:00:17.7]} 33... Kf6 {[%clk 0:00:28.4]} 34. f4 {[%clk 0:00:17.7]} 34... Ke6
{[%clk 0:00:25.8]} 35. g4 {[%clk 0:00:17.1]} 35... Be4 {[%clk 0:00:25]} 36. Kf2
{[%clk 0:00:17.3]} 36... Kd5 {[%clk 0:00:24.6]} 37. Ke3 {[%clk 0:00:16.7]} 37...
Bb1 {[%clk 0:00:19.7]} 38. Nd7 {[%clk 0:00:16.9]} 38... Kc6 {[%clk 0:00:13.4]}
39. Nf6 {[%clk 0:00:17.3]} 39... h6 {[%clk 0:00:11.6]} 40. h4 {[%clk 0:00:16.5]}
40... b5 {[%clk 0:00:10.2]} 41. h5 {[%clk 0:00:16.7]} 41... gxh5 {[%clk
0:00:10.4]} 42. gxh5 {[%clk 0:00:17.1]} 42... b4 {[%clk 0:00:07.4]} 43. axb4
{[%clk 0:00:17.2]} 43... axb4 {[%clk 0:00:08.3]} 44. Kd4 {[%clk 0:00:17.4]}
44... Ba2 {[%clk 0:00:07.4]} 45. Ng4 {[%clk 0:00:17.1]} 45... Nf5+ {[%clk
0:00:07.3]} 46. Ke5 {[%clk 0:00:15.5]} 46... Ng3 {[%clk 0:00:07.4]} 47. Bd3
{[%clk 0:00:15.1]} 47... Nxh5 {[%clk 0:00:06.1]} 48. Nxh6 {[%clk 0:00:13.8]}
48... Ng3 {[%clk 0:00:06.2]} 49. f5 {[%clk 0:00:13.6]} 49... Kc5 {[%clk
0:00:05.8]} 50. f6 {[%clk 0:00:13.5]} 50... Nh5 {[%clk 0:00:03.5]} 51. f7 {[%clk
0:00:12.6]} 51... Bxf7 {[%clk 0:00:03.7]} 52. Nxf7 {[%clk 0:00:13.5]} 52... Ng3
{[%clk 0:00:03.2]} 53. Kf4 {[%clk 0:00:12.8]} 53... Kd4 {[%clk 0:00:03.4]} 54.
Bb1 {[%clk 0:00:11.1]} 54... Ne2+ {[%clk 0:00:03.8]} 55. Kf3 {[%clk 0:00:10.9]}
55... Nc3 {[%clk 0:00:04.7]} 56. Bg6 {[%clk 0:00:10.9]} 56... b3 {[%clk
0:00:04.8]} 57. Nd8 {[%clk 0:00:11.1]} 57... b2 {[%clk 0:00:05.4]} 58. Nc6+
{[%clk 0:00:11.3]} 58... Kc4 {[%clk 0:00:05.4]} 59. Ne5+ {[%clk 0:00:11.3]}
59... Kb3 {[%clk 0:00:05.6]} 60. Nd7 {[%clk 0:00:11]} 60... Nb5 {[%clk
0:00:05.7]} 61. Nc5+ {[%clk 0:00:11.2]} 61... Kc3 {[%clk 0:00:05.9]} 62. Na4+
{[%clk 0:00:11.4]} 62... Kb3 {[%clk 0:00:06.4]} 63. Nxb2 {[%clk 0:00:11.9]}
63... Kxb2 {[%clk 0:00:07.3]} 1/2-1/2

[Event "Early-Titled-Tuesday-Blitz-January-23-2024"]
[Site "Chess.com"]
[Date "2024.01.23"]
[Round "6"]
[White "rasmussvane"]
[Black "Paladin61"]
[Result "1-0"]
[WhiteElo "3003"]
[BlackElo "2758"]
[TimeControl "180+1"]
[EndTime "9:07:11 PST"]
[Termination "rasmussvane won on time"]

1. Nf3 {[%clk 0:02:59.1]} 1... d5 {[%clk 0:02:59.2]} 2. g3 {[%clk 0:02:59.4]}
2... Nf6 {[%clk 0:02:59.2]} 3. Bg2 {[%clk 0:02:59.2]} 3... e6 {[%clk 0:02:57.5]}
4. O-O {[%clk 0:02:59.4]} 4... Bd6 {[%clk 0:02:54.9]} 5. c4 {[%clk 0:02:59.7]}
5... O-O {[%clk 0:02:54.5]} 6. b3 {[%clk 0:02:59.9]} 6... dxc4 {[%clk
0:02:54.1]} 7. bxc4 {[%clk 0:03:00]} 7... e5 {[%clk 0:02:54.7]} 8. Nc3 {[%clk
0:02:56.1]} 8... c6 {[%clk 0:02:54.2]} 9. Rb1 {[%clk 0:02:50.9]} 9... Re8 {[%clk
0:02:51.5]} 10. Qc2 {[%clk 0:02:21.8]} 10... Na6 {[%clk 0:02:46]} 11. Ng5 {[%clk
0:02:11.6]} 11... h6 {[%clk 0:02:44.8]} 12. Nge4 {[%clk 0:02:10.6]} 12... Nxe4
{[%clk 0:02:43.9]} 13. Nxe4 {[%clk 0:02:11.5]} 13... Bf8 {[%clk 0:02:43]} 14. d3
{[%clk 0:02:08.1]} 14... f5 {[%clk 0:02:39.2]} 15. Nd2 {[%clk 0:02:04.2]} 15...
Rb8 {[%clk 0:02:23.9]} 16. Bb2 {[%clk 0:02:03.5]} 16... Nc5 {[%clk 0:02:17.6]}
17. Bc3 {[%clk 0:01:59.4]} 17... Bd6 {[%clk 0:02:04.9]} 18. e3 {[%clk
0:01:52.9]} 18... Nd7 {[%clk 0:01:58.1]} 19. Rfd1 {[%clk 0:01:29.7]} 19... Qe7
{[%clk 0:01:54.7]} 20. a4 {[%clk 0:01:24.1]} 20... Nf6 {[%clk 0:01:49.2]} 21. a5
{[%clk 0:01:20.6]} 21... a6 {[%clk 0:01:44.8]} 22. Qb2 {[%clk 0:01:14.6]} 22...
Kh7 {[%clk 0:01:37.2]} 23. Bb4 {[%clk 0:01:14.5]} 23... c5 {[%clk 0:01:22.6]}
24. Bc3 {[%clk 0:01:13.8]} 24... g5 {[%clk 0:01:18.3]} 25. Qc2 {[%clk
0:01:06.7]} 25... Kg7 {[%clk 0:01:11.5]} 26. Rb3 {[%clk 0:01:06.4]} 26... h5
{[%clk 0:01:00.8]} 27. Rdb1 {[%clk 0:01:06.6]} 27... h4 {[%clk 0:01:00.2]} 28.
Qb2 {[%clk 0:01:04.3]} 28... f4 {[%clk 0:00:43.4]} 29. Bxb7 {[%clk 0:00:57.5]}
29... hxg3 {[%clk 0:00:33.3]} 30. hxg3 {[%clk 0:00:56.2]} 30... Rh8 {[%clk
0:00:24.7]} 31. Bxc8 {[%clk 0:00:49.9]} 31... Rbxc8 {[%clk 0:00:24.8]} 32. Rb7
{[%clk 0:00:50.1]} 32... Rc7 {[%clk 0:00:25.1]} 33. Rxc7 {[%clk 0:00:50.6]}
33... Bxc7 {[%clk 0:00:25.5]} 34. Qb7 {[%clk 0:00:44.9]} 34... Qd7 {[%clk
0:00:17.5]} 35. Ne4 {[%clk 0:00:42.5]} 35... Qh3 {[%clk 0:00:12.5]} 36. Nxf6
{[%clk 0:00:32]} 36... Qh2+ {[%clk 0:00:08.2]} 37. Kf1 {[%clk 0:00:32.2]} 37...
Qh1+ {[%clk 0:00:08.5]} 38. Qxh1 {[%clk 0:00:31.9]} 38... Rxh1+ {[%clk
0:00:09.4]} 39. Ke2 {[%clk 0:00:32.1]} 39... Rxb1 {[%clk 0:00:09.8]} 40. Ne8+
{[%clk 0:00:32.6]} 40... Kg6 {[%clk 0:00:07.2]} 41. Nxc7 {[%clk 0:00:33.5]}
41... Kf5 {[%clk 0:00:06.6]} 42. gxf4 {[%clk 0:00:21.8]} 42... exf4 {[%clk
0:00:06.5]} 43. exf4 {[%clk 0:00:21.3]} 43... Kxf4 {[%clk 0:00:04.8]} 44. Nxa6
{[%clk 0:00:19.9]} 44... g4 {[%clk 0:00:03.9]} 45. Nxc5 {[%clk 0:00:18.9]} 45...
g3 {[%clk 0:00:03.3]} 46. fxg3+ {[%clk 0:00:19.1]} 46... Kxg3 {[%clk 0:00:04.2]}
47. Ke3 {[%clk 0:00:19.4]} 47... Rb8 {[%clk 0:00:03.5]} 48. a6 {[%clk
0:00:19.5]} 48... Re8+ {[%clk 0:00:02.2]} 49. Kd4 {[%clk 0:00:18]} 49... Rd8+
{[%clk 0:00:02]} 50. Ke5 {[%clk 0:00:17.5]} 50... Kf3 {[%clk 0:00:01.3]} 51. Bd4
{[%clk 0:00:15.2]} 51... Ke2 {[%clk 0:00:01.2]} 52. a7 {[%clk 0:00:14.8]} 52...
Ra8 {[%clk 0:00:01.2]} 53. Ne6 {[%clk 0:00:14.4]} 53... Kxd3 {[%clk 0:00:02.1]}
54. Kd5 {[%clk 0:00:11.7]} 54... Kc2 {[%clk 0:00:01.4]} 55. Nc7 {[%clk
0:00:11.6]} 55... Rd8+ {[%clk 0:00:01.9]} 56. Kc5 {[%clk 0:00:11.2]} 56... Kb3
{[%clk 0:00:02.8]} 57. a8=Q {[%clk 0:00:11.2]} 57... Rxa8 {[%clk 0:00:02.5]} 58.
Nxa8 {[%clk 0:00:12.1]} 1-0

[Event "Early-Titled-Tuesday-Blitz-January-23-2024"]
[Site "Chess.com"]
[Date "2024.01.23"]
[Round "6"]
[White "Oleksandr_Bortnyk"]
[Black "artooon"]
[Result "0-1"]
[WhiteElo "3073"]
[BlackElo "2981"]
[TimeControl "180+1"]
[EndTime "9:07:12 PST"]
[Termination "artooon won by resignation"]

1. e4 {[%clk 0:03:00.9]} 1... e5 {[%clk 0:02:59.9]} 2. Nf3 {[%clk 0:02:59.7]}
2... Nc6 {[%clk 0:02:59.2]} 3. Bb5 {[%clk 0:02:59.7]} 3... a6 {[%clk 0:02:58.9]}
4. Ba4 {[%clk 0:02:59.7]} 4... Nf6 {[%clk 0:02:58.2]} 5. Nc3 {[%clk 0:03:00.2]}
5... Bc5 {[%clk 0:02:54.9]} 6. d3 {[%clk 0:02:48.3]} 6... O-O {[%clk 0:02:51]}
7. Bg5 {[%clk 0:02:45.8]} 7... h6 {[%clk 0:02:48.9]} 8. Bh4 {[%clk 0:02:44.3]}
8... b5 {[%clk 0:02:48.6]} 9. Bb3 {[%clk 0:02:44]} 9... Be7 {[%clk 0:02:49.2]}
10. a4 {[%clk 0:02:38.9]} 10... Rb8 {[%clk 0:02:46.7]} 11. axb5 {[%clk
0:02:38.5]} 11... axb5 {[%clk 0:02:47.6]} 12. O-O {[%clk 0:02:36.2]} 12... d6
{[%clk 0:02:45.7]} 13. h3 {[%clk 0:02:20.2]} 13... Be6 {[%clk 0:02:44.7]} 14.
Bxf6 {[%clk 0:02:17.5]} 14... Bxf6 {[%clk 0:02:42.8]} 15. Nd5 {[%clk 0:02:15.9]}
15... g6 {[%clk 0:02:25.9]} 16. Qd2 {[%clk 0:02:09.3]} 16... Bg7 {[%clk
0:02:25.2]} 17. Ra6 {[%clk 0:01:57.9]} 17... Bxd5 {[%clk 0:02:04.5]} 18. Bxd5
{[%clk 0:01:58.8]} 18... Ne7 {[%clk 0:02:05.1]} 19. Bb3 {[%clk 0:01:55.8]} 19...
Kh7 {[%clk 0:02:02.2]} 20. Rfa1 {[%clk 0:01:38.1]} 20... f5 {[%clk 0:02:00.9]}
21. Qc3 {[%clk 0:01:31.7]} 21... d5 {[%clk 0:01:44.2]} 22. Re6 {[%clk 0:00:50]}
22... fxe4 {[%clk 0:01:25.8]} 23. dxe4 {[%clk 0:00:50.9]} 23... dxe4 {[%clk
0:01:05.8]} 24. Nxe5 {[%clk 0:00:48.7]} 24... Rb6 {[%clk 0:01:06.1]} 25. Rxb6
{[%clk 0:00:39]} 25... cxb6 {[%clk 0:01:07]} 26. Re1 {[%clk 0:00:36]} 26... Rf5
{[%clk 0:00:36.5]} 27. Rxe4 {[%clk 0:00:34.5]} 27... Qd1+ {[%clk 0:00:33.1]} 28.
Kh2 {[%clk 0:00:18.4]} 28... Nd5 {[%clk 0:00:23.8]} 29. Qg3 {[%clk 0:00:13.4]}
29... Nf4 {[%clk 0:00:17]} 30. Ng4 {[%clk 0:00:10.2]} 30... Ne2 {[%clk
0:00:14.4]} 31. Rxe2 {[%clk 0:00:10.7]} 31... Qxe2 {[%clk 0:00:15.3]} 32. Qe3
{[%clk 0:00:01.6]} 32... Qxe3 {[%clk 0:00:14.1]} 33. Nxe3 {[%clk 0:00:02.5]}
33... Rxf2 {[%clk 0:00:12.6]} 34. Kg3 {[%clk 0:00:03.3]} 34... Rd2 {[%clk
0:00:09.8]} 35. Nd5 {[%clk 0:00:03.4]} 35... Bxb2 {[%clk 0:00:06.5]} 36. Nxb6
{[%clk 0:00:03.8]} 36... Be5+ {[%clk 0:00:04.8]} 37. Kf3 {[%clk 0:00:04.2]}
37... Rd8 {[%clk 0:00:05.4]} 38. Nd5 {[%clk 0:00:03.8]} 38... Bd6 {[%clk
0:00:05.5]} 39. g4 {[%clk 0:00:02.6]} 39... Kg7 {[%clk 0:00:06]} 40. Ke4 {[%clk
0:00:01.7]} 40... Re8+ {[%clk 0:00:05.6]} 41. Kf3 {[%clk 0:00:02.5]} 41... Re1
{[%clk 0:00:05.7]} 42. Nc3 {[%clk 0:00:02.9]} 42... Rh1 {[%clk 0:00:05.5]} 43.
Nxb5 {[%clk 0:00:02.3]} 43... Rxh3+ {[%clk 0:00:04.4]} 44. Ke4 {[%clk
0:00:01.3]} 44... Bb8 {[%clk 0:00:04.7]} 45. Be6 {[%clk 0:00:01.3]} 45... Rh1
{[%clk 0:00:03.1]} 46. c4 {[%clk 0:00:01.4]} 46... Re1+ {[%clk 0:00:03.5]} 47.
Kd5 {[%clk 0:00:02.1]} 47... Re5+ {[%clk 0:00:04.2]} 48. Kc6 {[%clk 0:00:01.5]}
48... Rxe6+ {[%clk 0:00:05.1]} 49. Kb7 {[%clk 0:00:02.4]} 49... Bf4 {[%clk
0:00:03.6]} 50. c5 {[%clk 0:00:02.9]} 50... h5 {[%clk 0:00:04.1]} 51. gxh5
{[%clk 0:00:03.1]} 51... gxh5 {[%clk 0:00:05]} 52. Nd4 {[%clk 0:00:04]} 52...
Rf6 {[%clk 0:00:05]} 53. c6 {[%clk 0:00:04.4]} 53... h4 {[%clk 0:00:05.6]} 54.
Ne2 {[%clk 0:00:04.3]} 54... Be5 {[%clk 0:00:06.1]} 55. Nc1 {[%clk 0:00:04.1]}
55... h3 {[%clk 0:00:06.3]} 56. Nd3 {[%clk 0:00:05]} 56... Bd6 {[%clk
0:00:06.9]} 0-1

[Event "Early-Titled-Tuesday-Blitz-January-23-2024"]
[Site "Chess.com"]
[Date "2024.01.23"]
[Round "6"]
[White "ferdipy"]
[Black "Bushonica"]
[Result "1-0"]
[WhiteElo "2294"]
[BlackElo "1810"]
[TimeControl "180+1"]
[EndTime "9:07:12 PST"]
[Termination "ferdipy won by resignation"]

1. e4 {[%clk 0:03:00.7]} 1... e5 {[%clk 0:02:59.5]} 2. Nf3 {[%clk 0:03:01]} 2...
Nf6 {[%clk 0:02:59.3]} 3. Nc3 {[%clk 0:03:00.9]} 3... Nc6 {[%clk 0:02:58.1]} 4.
Bb5 {[%clk 0:03:00.7]} 4... d6 {[%clk 0:02:57.2]} 5. h3 {[%clk 0:02:52]} 5... g6
{[%clk 0:02:55]} 6. O-O {[%clk 0:02:51.9]} 6... Bg7 {[%clk 0:02:54.6]} 7. d4
{[%clk 0:02:50.6]} 7... O-O {[%clk 0:02:53.9]} 8. Bxc6 {[%clk 0:02:49.5]} 8...
bxc6 {[%clk 0:02:53.4]} 9. dxe5 {[%clk 0:02:50]} 9... dxe5 {[%clk 0:02:53.1]}
10. Qxd8 {[%clk 0:02:47.2]} 10... Rxd8 {[%clk 0:02:52.8]} 11. Nxe5 {[%clk
0:02:47.7]} 11... c5 {[%clk 0:02:51.9]} 12. Bg5 {[%clk 0:02:31.9]} 12... Be6
{[%clk 0:02:44.1]} 13. Nc6 {[%clk 0:02:10.3]} 13... Rd7 {[%clk 0:02:34.7]} 14.
Rad1 {[%clk 0:02:05.8]} 14... h6 {[%clk 0:02:19.6]} 15. Be3 {[%clk 0:01:53.7]}
15... Bc4 {[%clk 0:02:04.9]} 16. Rxd7 {[%clk 0:01:46]} 16... Nxd7 {[%clk
0:02:03.9]} 17. Rd1 {[%clk 0:01:46.6]} 17... Nb6 {[%clk 0:01:55.2]} 18. Bxc5
{[%clk 0:01:40.1]} 18... Bxc3 {[%clk 0:01:54.4]} 19. bxc3 {[%clk 0:01:36.8]}
19... Bxa2 {[%clk 0:01:53.8]} 20. Ra1 {[%clk 0:01:32.5]} 20... Be6 {[%clk
0:01:52.3]} 21. Rxa7 {[%clk 0:01:29.4]} 21... Rxa7 {[%clk 0:01:32.6]} 22. Nxa7
{[%clk 0:01:30.3]} 22... Na4 {[%clk 0:01:31.9]} 23. Bd4 {[%clk 0:01:20.1]} 23...
c5 {[%clk 0:01:29.7]} 24. Bf6 {[%clk 0:01:19.9]} 24... Kf8 {[%clk 0:01:29]} 25.
Nb5 {[%clk 0:01:16.4]} 25... Ke8 {[%clk 0:01:27.9]} 26. Nc7+ {[%clk 0:01:15.9]}
26... Kd7 {[%clk 0:01:27.9]} 27. Nxe6 {[%clk 0:01:16.8]} 27... Kxe6 {[%clk
0:01:27.9]} 28. Bg7 {[%clk 0:01:12.7]} 28... h5 {[%clk 0:01:27.1]} 29. Kf1
{[%clk 0:00:56.7]} 29... f6 {[%clk 0:01:18.9]} 30. Ke2 {[%clk 0:00:56.9]} 30...
Nxc3+ {[%clk 0:01:18.4]} 31. Kd3 {[%clk 0:00:57.3]} 31... Nd1 {[%clk 0:01:15.9]}
32. f3 {[%clk 0:00:54.7]} 32... Nb2+ {[%clk 0:01:15]} 33. Kc3 {[%clk 0:00:52.7]}
33... Nd1+ {[%clk 0:01:14.8]} 34. Kd2 {[%clk 0:00:49.6]} 34... Nb2 {[%clk
0:01:13.4]} 35. Bf8 {[%clk 0:00:45.7]} 35... Nc4+ {[%clk 0:01:10.4]} 36. Kc3
{[%clk 0:00:35]} 36... Ne3 {[%clk 0:01:08.5]} 37. g4 {[%clk 0:00:35]} 37... hxg4
{[%clk 0:01:05.7]} 38. hxg4 {[%clk 0:00:35.9]} 38... c4 {[%clk 0:01:05.5]} 39.
Bc5 {[%clk 0:00:34.1]} 39... Nf1 {[%clk 0:01:01]} 40. f4 {[%clk 0:00:28.5]}
40... Ng3 {[%clk 0:00:56.8]} 41. Kd4 {[%clk 0:00:23.9]} 41... Ne2+ {[%clk
0:00:55.7]} 42. Ke3 {[%clk 0:00:20.6]} 42... Nc3 {[%clk 0:00:51.7]} 43. f5+
{[%clk 0:00:20.3]} 43... gxf5 {[%clk 0:00:51.4]} 44. gxf5+ {[%clk 0:00:21]}
44... Kf7 {[%clk 0:00:49.3]} 45. Kd4 {[%clk 0:00:20]} 45... Ne2+ {[%clk
0:00:37.9]} 46. Kxc4 {[%clk 0:00:20.3]} 46... Ng3 {[%clk 0:00:37.7]} 47. Kd5
{[%clk 0:00:20.3]} 47... Ne2 {[%clk 0:00:36.3]} 48. c4 {[%clk 0:00:17.3]} 48...
Nf4+ {[%clk 0:00:35.7]} 49. Kd6 {[%clk 0:00:14.6]} 49... Nd3 {[%clk 0:00:34.7]}
50. Bd4 {[%clk 0:00:11.4]} 50... Nb4 {[%clk 0:00:33]} 51. c5 {[%clk 0:00:10]}
51... Nc2 {[%clk 0:00:32.4]} 52. Bc3 {[%clk 0:00:07.8]} 52... Ne3 {[%clk
0:00:31.7]} 53. Kd7 {[%clk 0:00:06.5]} 53... Nd1 {[%clk 0:00:26.4]} 54. Bd4
{[%clk 0:00:06.2]} 54... Kf8 {[%clk 0:00:20.3]} 55. c6 {[%clk 0:00:06.4]} 55...
Kf7 {[%clk 0:00:20]} 56. c7 {[%clk 0:00:06.8]} 56... Kf8 {[%clk 0:00:20.1]} 57.
c8=Q+ {[%clk 0:00:06.8]} 1-0

[Event "Early-Titled-Tuesday-Blitz-January-23-2024"]
[Site "Chess.com"]
[Date "2024.01.23"]
[Round "6"]
[White "MusicCityMaster"]
[Black "Doomfist26"]
[Result "1-0"]
[WhiteElo "2445"]
[BlackElo "2597"]
[TimeControl "180+1"]
[EndTime "9:07:14 PST"]
[Termination "MusicCityMaster won by resignation"]

1. d4 {[%clk 0:03:00.9]} 1... Nf6 {[%clk 0:02:56.7]} 2. c4 {[%clk 0:03:00.3]}
2... g6 {[%clk 0:02:55.7]} 3. Nc3 {[%clk 0:03:00.5]} 3... Bg7 {[%clk 0:02:56.6]}
4. e4 {[%clk 0:03:00.9]} 4... d6 {[%clk 0:02:57.1]} 5. Nf3 {[%clk 0:03:01.5]}
5... O-O {[%clk 0:02:57.6]} 6. Be2 {[%clk 0:03:02.2]} 6... Bg4 {[%clk 0:02:55]}
7. Be3 {[%clk 0:03:01.1]} 7... Nc6 {[%clk 0:02:54.4]} 8. Ng1 {[%clk 0:03:00.9]}
8... Bxe2 {[%clk 0:02:49.2]} 9. Ngxe2 {[%clk 0:03:01.1]} 9... e5 {[%clk
0:02:49.5]} 10. d5 {[%clk 0:03:00.7]} 10... Nd4 {[%clk 0:02:49.3]} 11. Nxd4
{[%clk 0:02:50.9]} 11... exd4 {[%clk 0:02:50.2]} 12. Bxd4 {[%clk 0:02:51.3]}
12... Re8 {[%clk 0:02:49.9]} 13. f3 {[%clk 0:02:40.9]} 13... Nxe4 {[%clk
0:02:29]} 14. fxe4 {[%clk 0:01:51.1]} 14... Qh4+ {[%clk 0:02:27.9]} 15. Kf1
{[%clk 0:01:46.3]} 15... Qf4+ {[%clk 0:02:22.4]} 16. Kg1 {[%clk 0:01:40.6]}
16... Bh6 {[%clk 0:02:19.7]} 17. Bf2 {[%clk 0:01:33.6]} 17... f5 {[%clk
0:02:18.5]} 18. Qf3 {[%clk 0:01:25.6]} 18... Qd2 {[%clk 0:01:51.4]} 19. Rf1
{[%clk 0:01:01.1]} 19... Qxb2 {[%clk 0:01:40.1]} 20. exf5 {[%clk 0:00:58.6]}
20... Rf8 {[%clk 0:01:38.2]} 21. f6 {[%clk 0:00:50.2]} 21... Rae8 {[%clk
0:01:31.8]} 22. h4 {[%clk 0:00:45.7]} 22... Re5 {[%clk 0:01:23.7]} 23. f7+
{[%clk 0:00:38.3]} 23... Rxf7 {[%clk 0:01:22.5]} 24. Qh3 {[%clk 0:00:25.9]}
24... Ref5 {[%clk 0:01:21]} 25. Ne4 {[%clk 0:00:25.6]} 25... Qe5 {[%clk
0:01:11.2]} 26. Qd3 {[%clk 0:00:14.5]} 26... Rf4 {[%clk 0:01:08]} 27. Ng5 {[%clk
0:00:12.7]} 27... Bxg5 {[%clk 0:01:00.1]} 28. hxg5 {[%clk 0:00:13]} 28... Qxg5
{[%clk 0:01:01]} 29. Qe3 {[%clk 0:00:11.6]} 29... Qf5 {[%clk 0:00:58.9]} 30. Rh3
{[%clk 0:00:10.2]} 30... Re4 {[%clk 0:00:59]} 31. Qg3 {[%clk 0:00:08.8]} 31...
Rxc4 {[%clk 0:00:57.6]} 32. Qe3 {[%clk 0:00:06.5]} 32... Re4 {[%clk 0:00:57.6]}
33. Qg3 {[%clk 0:00:06.6]} 33... Rf4 {[%clk 0:00:57]} 34. Qe3 {[%clk 0:00:05.9]}
34... Qxd5 {[%clk 0:00:49.3]} 35. Re1 {[%clk 0:00:04.1]} 35... Qe5 {[%clk
0:00:41.8]} 36. Qxe5 {[%clk 0:00:03]} 36... dxe5 {[%clk 0:00:42.7]} 37. Bg3
{[%clk 0:00:02.9]} 37... R4f5 {[%clk 0:00:41.7]} 38. Rxe5 {[%clk 0:00:01.8]}
38... Rxe5 {[%clk 0:00:34.4]} 39. Bxe5 {[%clk 0:00:02.7]} 39... c5 {[%clk
0:00:34.9]} 40. Re3 {[%clk 0:00:03]} 40... Re7 {[%clk 0:00:34.3]} 41. Bf4 {[%clk
0:00:03.4]} 41... Rxe3 {[%clk 0:00:34.4]} 42. Bxe3 {[%clk 0:00:04.3]} 42... b6
{[%clk 0:00:35.3]} 43. Kf2 {[%clk 0:00:04.8]} 43... Kf7 {[%clk 0:00:36.2]} 44.
Kf3 {[%clk 0:00:05.7]} 44... Ke6 {[%clk 0:00:37.1]} 45. Ke4 {[%clk 0:00:06.6]}
45... Kd6 {[%clk 0:00:37.5]} 46. Bd2 {[%clk 0:00:06.2]} 46... Ke6 {[%clk
0:00:37.1]} 47. Bc3 {[%clk 0:00:06.5]} 47... b5 {[%clk 0:00:37.2]} 48. a3 {[%clk
0:00:06.8]} 48... a6 {[%clk 0:00:36.9]} 49. Bd2 {[%clk 0:00:07.2]} 49... Kd6
{[%clk 0:00:37.3]} 50. Bc3 {[%clk 0:00:07.7]} 50... Kc6 {[%clk 0:00:36.8]} 51.
Ke5 {[%clk 0:00:07.4]} 51... h5 {[%clk 0:00:35.7]} 52. Bd2 {[%clk 0:00:07.3]}
52... Kb6 {[%clk 0:00:35.7]} 53. Kd6 {[%clk 0:00:07.3]} 53... c4 {[%clk
0:00:31.3]} 54. Kd5 {[%clk 0:00:05.9]} 54... a5 {[%clk 0:00:20.5]} 55. Be3+
{[%clk 0:00:06]} 55... Ka6 {[%clk 0:00:20.5]} 56. Bd2 {[%clk 0:00:06.1]} 56...
g5 {[%clk 0:00:19.6]} 57. Bxg5 {[%clk 0:00:05.8]} 57... Kb6 {[%clk 0:00:13.9]}
58. Be3+ {[%clk 0:00:04.9]} 58... Ka6 {[%clk 0:00:14.3]} 59. Bd2 {[%clk
0:00:05.1]} 59... Kb6 {[%clk 0:00:14.6]} 60. Bc3 {[%clk 0:00:04.6]} 60... Ka6
{[%clk 0:00:14.8]} 61. Kc6 {[%clk 0:00:04.5]} 1-0